bitfinex-derivatives/quotes_SOLF0:USTF0_20240816
["timestamp","ask_amount","ask_price","bid_price","bid_amount"]
[1723825109669,3.58683968,138.24,138.22,0.05368344]
[1723825110076,5.76,138.25,138.22,0.05368344]
[1723825110371,3.55392626,138.24,138.22,0.05368344]
[1723825110576,5.76,138.25,138.22,0.05368344]
[1723825112669,0.04818588,138.27,138.22,0.05368344]
[1723825113781,0.04818588,138.27,138.22,52.13368344]
[1723825114081,0.04818588,138.27,138.25,3.6155]
[1723825114275,0.04818588,138.27,138.22,0.05368344]
[1723825115068,0.04818588,138.27,138.24,3.6158]
[1723825115274,0.04818588,138.27,138.22,0.05368344]
[1723825115468,0.04818588,138.27,138.24,3.6159]
[1723825115977,0.04818588,138.27,138.22,0.05368344]
[1723825116274,0.04818588,138.27,138.22,52.13368344]
[1723825116580,0.04818588,138.27,138.26,3.6155]
[1723825117980,0.04818588,138.27,138.25,3.66979897]
[1723825118177,0.04818588,138.27,138.25,0.05419897]
[1723825120269,5.61849895,138.26,138.25,0.05419897]
[1723825121085,1.35988588,138.27,138.25,0.05419897]
[1723825121382,5.61939953,138.26,138.25,0.05419897]
[1723825123274,6.96569953,138.26,138.25,0.05419897]
[1723825123778,0.04818588,138.27,138.25,0.05419897]
[1723825124180,0.04818588,138.27,138.26,3.6155]
[1723825124581,21.55814117,138.36,138.25,0.05419897]
[1723825124780,8.235,138.39,138.28,52.08]
[1723825124781,5.61626719,138.33,138.28,52.08]
[1723825124985,5.66,138.37,138.28,52.08]
[1723825125177,5.66,138.37,138.3,52.08]
[1723825125683,5.66,138.37,138.33,3.6137]
[1723825125881,5.66,138.37,138.3,52.08]
[1723825126086,0.0542485,138.33,138.31,0.04678171]
[1723825127890,0.0542485,138.33,138.32,3.6139]
[1723825131388,0.0542485,138.33,138.31,3.66088171]
[1723825131596,0.0542485,138.33,138.31,0.04678171]
[1723825133493,0.0542485,138.33,138.31,3.66078171]
[1723825133891,0.0542485,138.33,138.31,0.04678171]
[1723825134195,0.0542485,138.33,138.32,3.6139]
[1723825134790,52.08,138.4,138.32,3.6139]
[1723825134791,3.65617389,138.41,138.32,52.08]
[1723825135086,3.65617389,138.41,138.34,52.08]
[1723825135087,5.61186083,138.4,138.34,52.08]
[1723825135286,5.61186083,138.39,138.34,52.08]
[1723825135491,3.65617389,138.41,138.34,52.08]
[1723825135492,3.65617389,138.41,138.36,3.6127]
[1723825135691,5.61120094,138.4,138.36,3.6127]
[1723825135891,0.05316658,138.4,138.37,0.04675543]
[1723825136291,0.05316658,138.4,138.37,3.65925543]
[1723825136796,0.05316658,138.4,138.38,3.6123]
[1723825138796,0.05316658,138.4,138.39,3.6121]
[1723825139489,0.05316658,138.4,138.37,3.65915543]
[1723825140096,0.05316658,138.4,138.38,3.6122]
[1723825140498,0.05316658,138.4,138.37,0.04675543]
[1723825141095,0.05316658,138.4,138.37,3.65915543]
[1723825141314,0.05316658,138.4,138.37,0.04675543]
[1723825143196,0.05316658,138.4,138.39,3.6121]
[1723825143406,3.9058,138.46,138.38,52.08]
[1723825143593,3.9058,138.46,138.41,3.6115]
[1723825143899,3.9058,138.46,138.38,52.08]
[1723825144501,0.04758722,138.43,138.41,0.04883276]
[1723825145702,0.04758722,138.43,138.41,3.66033276]
[1723825146097,0.04758722,138.43,138.41,0.04883276]
[1723825148295,0.04758722,138.43,138.41,3.66033276]
[1723825148700,0.04758722,138.43,138.41,0.04883276]
[1723825151101,5.58,138.43,138.32,6.4499]
[1723825151892,5.58,138.43,138.34,3.6132]
[1723825152093,52.08,138.39,138.37,0.0539056]
[1723825152305,8.2962,138.38,138.28,7.7126]
[1723825152602,8.2962,138.38,138.29,52.08]
[1723825153210,52.08,138.37,138.27,48.0]
[1723825153506,0.04981336,138.35,138.32,0.05456401]
[1723825154301,52.12981336,138.35,138.32,0.05456401]
[1723825154700,52.12981336,138.35,138.27,48.0]
[1723825155808,52.12981336,138.35,138.3,0.0455315]
[1723825156211,0.04981336,138.35,138.3,0.0455315]
[1723825160706,5.62981336,138.35,138.3,0.0455315]
[1723825161012,0.04981336,138.35,138.31,52.08]
[1723825161213,0.04981336,138.35,138.33,52.08]
[1723825161603,0.04981336,138.35,138.34,3.6134]
[1723825162811,8.235,138.42,138.38,3.6122]
[1723825163005,8.235,138.42,138.34,52.08]
[1723825163006,13.815,138.42,138.34,52.08]
[1723825163414,13.815,138.42,138.38,3.6123]
[1723825163612,13.815,138.42,138.34,52.08]
[1723825163613,12.815,138.42,138.34,52.08]
[1723825163814,12.815,138.42,138.37,3.6124]
[1723825164109,0.0507609,138.39,138.37,0.05501051]
[1723825164312,0.0507609,138.39,138.38,3.6123]
[1723825164717,0.0507609,138.39,138.37,52.13501051]
[1723825164918,0.0507609,138.39,138.37,3.66751051]
[1723825165421,0.0507609,138.39,138.37,0.05501051]
[1723825165618,0.0507609,138.39,138.38,3.6123]
[1723825166224,1.3282,138.45,138.4,3.6116]
[1723825166519,1.3282,138.45,138.38,52.08]
[1723825166917,1.3282,138.45,138.4,3.6117]
[1723825167123,0.0631,138.45,138.38,52.08]
[1723825167319,0.05164606,138.44,138.41,0.05165145]
[1723825167515,0.05164606,138.44,138.41,3.66305145]
[1723825168312,0.05164606,138.44,138.41,0.05165145]
[1723825168512,52.08,138.43,138.32,58.53]
[1723825168709,1.3362,138.42,138.32,58.53]
[1723825169111,1.3362,138.42,138.34,52.08]
[1723825169516,1.3362,138.42,138.37,3.6125]
[1723825169716,0.05184583,138.39,138.37,0.04986323]
[1723825170118,0.05184583,138.39,138.38,3.6123]
[1723825170315,0.05184583,138.39,138.37,0.04986323]
[1723825173729,0.05184583,138.39,138.3,52.08]
[1723825174126,12.2089968,138.4,138.3,52.08]
[1723825174829,12.2089968,138.4,138.28,58.5823]
[1723825175129,0.05385746,138.36,138.34,0.0550026]
[1723825175317,12.86885746,138.36,138.34,0.0550026]
[1723825175730,1.2855,138.35,138.34,0.0550026]
[1723825177216,12.86885746,138.36,138.34,0.0550026]
[1723825177428,0.05385746,138.36,138.34,0.0550026]
[1723825177819,0.05385746,138.36,138.35,3.6131]
[1723825180424,0.05385746,138.36,138.34,3.6683026]
[1723825180731,0.05385746,138.36,138.34,0.0550026]
[1723825181931,5.63385746,138.36,138.34,0.0550026]
[1723825182129,12.86885746,138.36,138.34,0.0550026]
[1723825183629,64.94885746,138.36,138.29,3.6146]
[1723825183834,64.895,138.36,138.29,3.6146]
[1723825184033,64.895,138.36,138.27,51.6151]
[1723825184335,7.235,138.34,138.27,51.6151]
[1723825184540,1.39,138.33,138.27,48.0]
[1723825184835,0.04794017,138.32,138.29,0.04599614]
[1723825185032,5.58,138.31,138.29,0.04599614]
[1723825187233,64.895,138.31,138.27,48.0]
[1723825187436,12.815,138.31,138.27,48.0]
[1723825188338,12.85194826,138.3,138.27,48.0]
[1723825188547,7.235,138.3,138.27,48.0]
[1723825188841,59.315,138.29,138.27,39.61753227]
[1723825189038,5.61825502,138.28,138.27,18.66329876]
[1723825189234,5.61825502,138.28,138.18,52.08]
[1723825189235,12.85325502,138.28,138.18,52.08]
[1723825189435,5.61825502,138.27,138.19,3.6172]
[1723825189635,5.58,138.26,138.19,3.6172]
[1723825189833,5.58,138.26,138.2,3.617]
[1723825190038,0.05029638,138.24,138.21,0.05286844]
[1723825190239,3.62462657,138.24,138.21,0.05286844]
[1723825190537,0.05029638,138.24,138.21,0.05286844]
[1723825191038,3.72804169,138.24,138.21,0.05286844]
[1723825191239,0.05029638,138.24,138.21,0.05286844]
[1723825191844,3.68548494,138.23,138.21,0.05286844]
[1723825193037,52.13029638,138.24,138.21,0.05286844]
[1723825193243,5.62103923,138.23,138.21,0.05286844]
[1723825193436,5.6215531,138.22,138.21,0.05286844]
[1723825194334,55.81252591,138.24,138.21,0.05286844]
[1723825194540,5.62188507,138.23,138.21,0.05286844]
[1723825194740,55.81252591,138.24,138.21,0.05286844]
[1723825194935,5.62198917,138.23,138.21,0.05286844]
[1723825195140,5.62198917,138.22,138.21,0.05286844]
[1723825195340,1.0,138.23,138.21,0.05286844]
[1723825195733,5.58,138.22,138.21,0.05286844]
[1723825196847,1.0,138.23,138.21,0.05286844]
[1723825197144,0.05029638,138.24,138.21,0.05286844]
[1723825197735,3.65119899,138.24,138.21,0.05286844]
[1723825197948,0.05029638,138.24,138.21,0.05286844]
[1723825198543,55.69646708,138.24,138.21,0.05286844]
[1723825198747,52.13029638,138.24,138.21,0.05286844]
[1723825199443,55.79858833,138.24,138.21,0.05286844]
[1723825199646,3.71858833,138.24,138.21,0.05286844]
[1723825201144,0.0631,138.3,138.21,0.05286844]
[1723825201341,0.0631,138.3,138.18,5.58]
[1723825201342,3.5913891,138.3,138.26,3.6153]
[1723825201546,0.0631,138.3,138.25,1.2843]
[1723825201852,3.64683468,138.3,138.22,3.6164]
[1723825202043,0.0631,138.3,138.22,3.6164]
[1723825202248,5.58,138.29,138.2,52.08]
[1723825202446,5.58,138.29,138.23,3.6161]
[1723825202745,0.05112314,138.27,138.25,0.05488676]
[1723825210053,52.08,138.26,138.25,0.05488676]
[1723825210260,52.08,138.26,138.25,0.00488676]
[1723825210645,52.08,138.26,138.22,19.0]
[1723825210851,52.08,138.25,138.22,16.73488676]
[1723825211058,5.58,138.24,138.22,16.73488676]
[1723825211246,5.58,138.24,138.22,14.73488676]
[1723825211451,5.58,138.24,138.22,11.73488676]
[1723825211756,9.24214196,138.24,138.22,11.78584247]
[1723825213259,8.235,138.25,138.22,11.78584247]
[1723825213456,1.0,138.25,138.22,11.78584247]
[1723825213856,0.05112314,138.27,138.23,1.3963]
[1723825214161,3.62607985,138.27,138.23,1.3963]
[1723825214855,3.62607985,138.27,138.23,5.0124]
[1723825215255,3.62607985,138.27,138.23,1.3963]
[1723825215454,3.62607985,138.27,138.23,5.0125]
[1723825215654,3.62607985,138.27,138.23,1.3963]
[1723825215855,55.70607985,138.27,138.22,8.78584247]
[1723825218162,3.62607985,138.27,138.22,8.78584247]
[1723825219264,3.62607985,138.27,138.22,12.40234247]
[1723825219767,3.62607985,138.27,138.22,8.78584247]
[1723825219961,55.70607985,138.27,138.22,8.78584247]
[1723825221263,52.08,138.25,138.22,8.78584247]
[1723825221863,59.315,138.25,138.22,8.78584247]
[1723825222064,1.0,138.24,138.22,8.78584247]
[1723825222260,5.58,138.23,138.22,8.78584247]
[1723825222663,57.66,138.23,138.22,5.78584247]
[1723825222856,64.895,138.23,138.11,2.7508]
[1723825223057,59.315,138.2,138.11,2.7508]
[1723825223262,59.315,138.2,138.13,3.6187]
[1723825223970,0.0507141,138.18,138.15,0.04891796]
[1723825224267,12.8657141,138.18,138.15,0.04891796]
[1723825227867,0.0507141,138.18,138.15,0.04891796]
[1723825228071,8.235,138.22,138.17,52.08]
[1723825228372,3.63412182,138.23,138.18,2.7217]
[1723825228770,12.815,138.25,138.19,3.6172]
[1723825229068,0.04919313,138.23,138.21,0.04949098]
[1723825232372,52.08,138.22,138.21,0.04949098]
[1723825232561,53.08,138.22,138.21,0.04949098]
[1723825232767,7.235,138.21,138.14,1.3417]
[1723825232961,57.66,138.2,138.14,1.3417]
[1723825233371,58.66,138.2,138.14,1.3417]
[1723825233767,6.58,138.2,138.14,1.3417]
[1723825234072,0.05249989,138.18,138.16,0.04951588]
[1723825234271,3.74383351,138.18,138.16,0.04951588]
[1723825234473,0.05249989,138.18,138.16,0.04951588]
[1723825235164,3.68448265,138.18,138.16,0.04951588]
[1723825235369,0.05249989,138.18,138.16,0.04951588]
[1723825235970,3.73478612,138.18,138.16,0.04951588]
[1723825236371,0.05249989,138.18,138.16,0.04951588]
[1723825236697,10.92228266,138.25,138.16,52.12951588]
[1723825236868,5.58,138.24,138.2,3.6169]
[1723825237570,0.04617361,138.23,138.21,0.05198578]
[1723825237777,0.04617361,138.23,138.21,3.66868578]
[1723825237969,0.04617361,138.23,138.21,0.05198578]
[1723825238775,0.04617361,138.23,138.21,3.66868578]
[1723825239167,0.04617361,138.23,138.21,0.05198578]
[1723825239967,5.58,138.27,138.21,52.13198578]
[1723825240165,3.55432988,138.26,138.22,2.6018]
[1723825240367,3.55432988,138.26,138.23,3.6161]
[1723825240569,5.58,138.27,138.21,0.05198578]
[1723825240768,9.24144374,138.27,138.21,0.05198578]
[1723825241467,0.05202255,138.25,138.21,0.05198578]
[1723825241873,0.05202255,138.25,138.22,3.6164]
[1723825242069,0.05202255,138.25,138.21,52.13198578]
[1723825242275,9.24144374,138.27,138.21,52.13198578]
[1723825242478,9.24144374,138.27,138.25,3.6156]
[1723825242780,9.24144374,138.27,138.21,52.08]
[1723825243077,9.24144374,138.27,138.24,3.6159]
[1723825243388,52.08,138.35,138.23,52.08]
[1723825243881,52.08,138.35,138.19,52.08]
[1723825244071,0.05431366,138.27,138.26,52.08]
[1723825244280,5.58,138.32,138.26,52.08]
[1723825244774,5.58,138.32,138.25,1.3853]
[1723825245175,52.08,138.3,138.25,1.3853]
[1723825245370,55.62158352,138.3,138.25,1.3853]
[1723825245772,55.67652518,138.3,138.27,0.05069682]
[1723825246575,55.67652518,138.3,138.23,4.98759682]
[1723825246985,55.67652518,138.3,138.23,8.60369682]
[1723825247278,3.59652518,138.3,138.23,57.06759682]
[1723825247582,3.59652518,138.3,138.26,3.6153]
[1723825248175,0.05494166,138.3,138.25,0.0528992]
[1723825248488,0.05494166,138.3,138.25,52.1328992]
[1723825248785,3.72995833,138.3,138.26,2.6461]
[1723825249169,3.72995833,138.3,138.26,6.2614]
[1723825250175,3.72995833,138.3,138.27,3.6152]
[1723825250376,3.72995833,138.3,138.26,2.6461]
[1723825250777,3.72995833,138.3,138.27,3.6152]
[1723825252380,3.72995833,138.3,138.26,6.2615]
[1723825254082,3.72995833,138.3,138.25,3.6684992]
[1723825255086,3.72995833,138.3,138.25,0.0528992]
[1723825255286,55.80995833,138.3,138.25,0.0528992]
[1723825256587,52.08,138.28,138.25,0.0528992]
[1723825256988,5.58,138.27,138.25,0.0528992]
[1723825258986,5.58,138.27,138.24,4.98759682]
[1723825259600,52.08,138.25,138.24,4.98759682]
[1723825260203,52.08,138.25,138.24,2.77929682]
[1723825260790,0.05071746,138.26,138.24,2.77929682]
[1723825261891,0.05071746,138.26,138.24,0.77929682]
[1723825262398,0.05071746,138.26,138.24,4.39509682]
[1723825262602,0.05071746,138.26,138.24,0.77929682]
[1723825264906,5.63071746,138.26,138.24,0.77929682]
[1723825268800,0.05071746,138.26,138.24,0.77929682]
[1723825268997,0.05071746,138.26,138.24,4.39509682]
[1723825269197,0.05071746,138.26,138.24,0.77929682]
[1723825270797,0.05071746,138.26,138.24,4.39519682]
[1723825271493,0.05071746,138.26,138.24,0.77929682]
[1723825271715,5.58,138.25,138.24,0.77929682]
[1723825275399,0.05071746,138.26,138.24,0.77929682]
[1723825275594,0.05071746,138.26,138.24,4.39519682]
[1723825275795,12.815,138.29,138.25,52.08]
[1723825276096,12.815,138.29,138.26,3.6153]
[1723825277101,12.87014936,138.29,138.26,0.05441297]
[1723825279003,12.87014936,138.29,138.26,3.66971297]
[1723825279305,12.87014936,138.29,138.26,0.05441297]
[1723825279502,5.63514936,138.29,138.27,3.6151]
[1723825280011,5.63514936,138.29,138.26,0.05441297]
[1723825280206,5.63514936,138.29,138.26,3.66971297]
[1723825281610,5.63514936,138.29,138.27,3.6151]
[1723825283610,0.05514936,138.29,138.27,3.6151]
[1723825284704,7.235,138.34,138.27,52.08]
[1723825284908,5.58,138.35,138.29,52.08]
[1723825285107,5.58,138.35,138.3,1.3274]
[1723825285312,5.58,138.35,138.31,52.08]
[1723825285498,5.58,138.39,138.32,1.4051]
[1723825285700,321.17080028,138.47,138.38,3.6123]
[1723825286017,321.17080028,138.47,138.34,52.08]
[1723825286018,27.49543362,138.46,138.34,52.08]
[1723825286207,0.05020142,138.37,138.36,3.6129]
[1723825286914,3.52893976,138.39,138.36,3.6129]
[1723825287211,6.58,138.46,138.36,3.6129]
[1723825287404,0.05318568,138.38,138.36,3.6129]
[1723825287604,3.57484526,138.38,138.36,3.6129]
[1723825287808,52.08,138.44,138.36,3.6129]
[1723825288108,52.08,138.44,138.36,3.66390363]
[1723825288305,0.05192316,138.41,138.36,3.66390363]
[1723825288703,0.05192316,138.41,138.36,0.05100363]
[1723825289400,0.05192316,138.41,138.36,3.66370363]
[1723825290208,0.05192316,138.41,138.36,52.13100363]
[1723825290412,0.05192316,138.41,138.36,53.43260363]
[1723825290609,0.05192316,138.41,138.38,3.6122]
[1723825290821,0.05192316,138.41,138.36,53.43260363]
[1723825291313,0.05192316,138.41,138.36,0.05100363]
[1723825291507,57.71192316,138.41,138.36,0.05100363]
[1723825292205,57.71192316,138.41,138.36,3.66370363]
[1723825292206,5.63192316,138.41,138.36,3.66370363]
[1723825292918,5.63192316,138.41,138.36,0.05100363]
[1723825293216,0.05192316,138.41,138.4,3.6118]
[1723825293807,3.55207324,138.47,138.4,52.08]
[1723825294019,5.56,138.48,138.4,52.08]
[1723825294208,5.56,138.48,138.43,3.6108]
[1723825294409,57.64,138.53,138.44,52.08]
[1723825294617,61.30523471,138.53,138.44,52.08]
[1723825295215,61.30523471,138.53,138.47,0.04658749]
[1723825295216,0.05201915,138.5,138.47,0.04658749]
[1723825295717,52.08,138.49,138.47,0.04658749]
[1723825295920,52.08,138.49,138.39,4.3618]
[1723825296118,52.08,138.47,138.39,4.3618]
[1723825296317,57.64,138.47,138.4,3.6117]
[1723825297028,9.11988299,138.47,138.39,4.3618]
[1723825297218,0.04623792,138.45,138.42,52.12963478]
[1723825297517,0.04623792,138.45,138.43,3.611]
[1723825298514,0.04623792,138.45,138.44,3.6108]
[1723825298721,0.04623792,138.45,138.42,52.12963478]
[1723825298722,0.04623792,138.45,138.42,0.04963478]
[1723825298920,0.04623792,138.45,138.43,3.611]
[1723825299221,1.0,138.48,138.42,52.12963478]
[1723825299422,3.60589526,138.49,138.42,52.12963478]
[1723825299423,3.60589526,138.49,138.46,3.6101]
[1723825299726,5.56,138.51,138.46,3.6101]
[1723825299916,5.56,138.51,138.39,4.3618]
[1723825299917,61.29211542,138.51,138.45,1.3108]
[1723825300917,61.29211542,138.51,138.47,0.04772165]
[1723825300918,0.05344416,138.49,138.47,0.04772165]
[1723825301122,52.13344416,138.49,138.47,0.04772165]
[1723825302622,52.13344416,138.49,138.41,3.0]
[1723825302828,52.08,138.45,138.41,3.0]
[1723825303035,5.56,138.44,138.41,3.0]
[1723825303933,5.61127719,138.44,138.41,3.05144149]
[1723825304133,0.05127719,138.44,138.41,3.05144149]
[1723825304632,0.05127719,138.44,138.42,3.6112]
[1723825305233,3.60992316,138.44,138.41,3.05144149]
[1723825306531,0.05127719,138.44,138.41,3.05144149]
[1723825307730,3.72837617,138.44,138.41,3.05144149]
[1723825307930,0.05127719,138.44,138.41,3.05144149]
[1723825308140,3.6555052,138.43,138.41,3.05144149]
[1723825308335,0.05127719,138.44,138.41,3.05144149]
[1723825308639,5.56,138.43,138.41,3.05144149]
[1723825309527,0.05127719,138.44,138.41,3.05144149]
[1723825309735,0.05127719,138.44,138.42,1.3649]
[1723825309934,0.05127719,138.44,138.42,2.6431]
[1723825310333,0.05127719,138.44,138.43,3.611]
[1723825310744,0.05127719,138.44,138.42,2.6431]
[1723825310940,0.05127719,138.44,138.42,6.2543]
[1723825312143,0.05127719,138.44,138.42,2.6431]
[1723825312543,0.05127719,138.44,138.42,6.2542]
[1723825313641,0.05127719,138.44,138.41,6.66284149]
[1723825314138,0.05127719,138.44,138.41,3.05144149]
[1723825314732,3.59593728,138.44,138.41,3.05144149]
[1723825315537,5.56,138.43,138.41,3.05144149]
[1723825316444,52.08,138.42,138.41,2.89164149]
[1723825316650,53.08,138.42,138.34,1.3282]
[1723825316849,52.08,138.4,138.3,54.8391]
[1723825317051,52.08,138.4,138.31,1.3282]
[1723825317845,0.04672345,138.37,138.34,0.04989005]
[1723825318048,5.56,138.36,138.34,0.04989005]
[1723825320440,0.04672345,138.37,138.34,52.12989005]
[1723825321742,3.59524654,138.37,138.34,0.04989005]
[1723825321941,0.04672345,138.37,138.34,0.04989005]
[1723825322147,3.63499173,138.37,138.34,0.04989005]
[1723825322355,0.04672345,138.37,138.34,0.04989005]
[1723825322745,3.56803437,138.36,138.34,0.04989005]
[1723825323051,0.04672345,138.37,138.34,0.04989005]
[1723825323545,36.115,138.45,138.36,52.08]
[1723825323746,36.115,138.45,138.34,0.04989005]
[1723825323747,5.56,138.44,138.38,52.08]
[1723825323946,9.19957571,138.44,138.4,3.6117]
[1723825324152,9.19957571,138.44,138.38,52.08]
[1723825324455,5.56,138.44,138.39,3.6119]
[1723825324655,9.26193287,138.44,138.39,3.6119]
[1723825324951,0.05328535,138.42,138.4,0.05251448]
[1723825325152,0.05328535,138.42,138.4,3.66431448]
[1723825325354,0.05328535,138.42,138.4,0.05251448]
[1723825325548,0.05328535,138.42,138.4,52.13251448]
[1723825325751,0.05328535,138.42,138.41,3.6116]
[1723825325943,7.235,138.49,138.41,1.3762]
[1723825325944,5.56,138.48,138.41,1.3762]
[1723825326151,5.56,138.48,138.41,2.7049]
[1723825326349,5.56,138.48,138.44,3.6106]
[1723825326958,5.56,138.48,138.41,2.7049]
[1723825327153,57.64,138.48,138.41,1.3762]
[1723825327345,0.04996135,138.47,138.45,0.05487406]
[1723825327854,53.08,138.46,138.36,53.4562]
[1723825328355,53.08,138.46,138.36,1.3762]
[1723825328550,52.08,138.43,138.35,1.317]
[1723825328883,0.04943013,138.4,138.38,0.04888501]
[1723825330054,0.04943013,138.4,138.38,3.66118501]
[1723825330259,0.04943013,138.4,138.38,0.04888501]
[1723825331156,0.04943013,138.4,138.38,3.66098501]
[1723825331459,8.235,138.46,138.38,52.12888501]
[1723825331758,8.235,138.46,138.41,3.6114]
[1723825332255,8.235,138.46,138.42,3.6113]
[1723825332650,0.04850009,138.45,138.43,0.05553107]
[1723825334453,3.69289468,138.44,138.43,0.05553107]
[1723825334770,0.04850009,138.45,138.43,0.05553107]
[1723825335657,3.63546972,138.44,138.43,0.05553107]
[1723825335961,0.04850009,138.45,138.43,0.05553107]
[1723825337663,3.69751065,138.44,138.43,0.05553107]
[1723825339761,0.04850009,138.45,138.43,0.05553107]
[1723825340757,0.04850009,138.45,138.43,3.66653107]
[1723825341253,0.04850009,138.45,138.43,0.05553107]
[1723825341453,0.04850009,138.45,138.44,3.6108]
[1723825342570,0.04850009,138.45,138.43,1.36413107]
[1723825342571,0.04850009,138.45,138.43,0.05553107]
[1723825344063,3.6119335,138.44,138.43,0.05553107]
[1723825344267,0.04850009,138.45,138.43,0.05553107]
[1723825347167,5.60850009,138.45,138.43,0.05553107]
[1723825347959,5.60850009,138.45,138.44,3.6108]
[1723825348259,0.04850009,138.45,138.44,3.6108]
[1723825350484,5.56,138.49,138.43,1.38473107]
[1723825350771,7.235,138.53,138.46,52.08]
[1723825350960,3.53548916,138.53,138.48,52.08]
[1723825351169,3.53548916,138.53,138.5,3.609]
[1723825351365,5.56,138.54,138.48,53.3675]
[1723825351559,5.56,138.54,138.5,52.08]
[1723825351863,0.04579009,138.52,138.5,52.13422124]
[1723825352365,3.60156295,138.56,138.48,53.3675]
[1723825352563,7.235,138.57,138.48,53.3675]
[1723825352872,62.92522836,138.57,138.48,1.2875]
[1723825353081,0.04582122,138.52,138.5,0.05141734]
[1723825354275,5.56,138.53,138.5,0.05141734]
[1723825354574,0.05532791,138.52,138.5,0.05141734]
[1723825355162,0.05532791,138.52,138.5,3.66061734]
[1723825355363,0.05532791,138.52,138.5,0.05141734]
[1723825356471,0.05532791,138.52,138.5,3.66041734]
[1723825358177,0.05532791,138.52,138.51,3.6089]
[1723825358978,0.05532791,138.52,138.5,3.66051734]
[1723825359481,0.05532791,138.52,138.51,3.6089]
[1723825359878,1.0,138.56,138.5,52.13141734]
[1723825360273,1.0,138.56,138.53,3.6084]
[1723825360881,1.0,138.56,138.5,52.08]
[1723825361079,1.05175843,138.56,138.53,0.04609057]
[1723825361480,1.05175843,138.56,138.53,3.65439057]
[1723825361982,1.05175843,138.56,138.53,0.04609057]
[1723825364878,1.05175843,138.56,138.53,3.65429057]
[1723825366179,1.05175843,138.56,138.53,0.04609057]
[1723825369282,0.05175843,138.56,138.54,3.608]
[1723825370093,0.05175843,138.56,138.55,3.6079]
[1723825370291,0.05175843,138.56,138.55,4.9976]
[1723825370888,5.56,138.59,138.57,3.6073]
[1723825371288,9.0934473,138.59,138.57,3.6073]
[1723825372093,9.13955701,138.59,138.57,3.65756499]
[1723825372288,9.13955701,138.59,138.57,0.05026499]
[1723825373989,68.45455701,138.59,138.57,0.05026499]
[1723825374195,68.4084473,138.59,138.5,1.3501]
[1723825374395,68.4084473,138.59,138.51,3.6089]
[1723825374594,1.0,138.58,138.51,3.6089]
[1723825374993,1.0,138.58,138.52,3.6086]
[1723825375299,1.0,138.58,138.5,53.4301]
[1723825375494,1.0,138.58,138.53,3.6083]
[1723825375693,0.04684955,138.56,138.54,0.05321913]
[1723825376701,0.04684955,138.56,138.54,3.66121913]
[1723825376903,5.56,138.57,138.54,0.05321913]
[1723825377213,7.235,138.6,138.54,52.13321913]
[1723825377392,7.235,138.6,138.55,2.6264]
[1723825377798,7.235,138.6,138.58,3.6071]
[1723825377997,7.28407724,138.6,138.58,0.05048102]
[1723825378499,1.0,138.59,138.58,0.05048102]
[1723825378696,4.67274205,138.59,138.5,2.6264]
[1723825378893,53.08,138.59,138.51,3.6088]
[1723825379305,60.315,138.59,138.51,3.6088]
[1723825379492,63.96753241,138.59,138.51,3.6088]
[1723825379696,63.96753241,138.59,138.5,4.9401]
[1723825380096,0.04776005,138.56,138.53,0.04799934]
[1723825380300,5.60776005,138.56,138.53,0.04799934]
[1723825380807,5.60776005,138.56,138.3,28.9149]
[1723825380808,52.08,138.55,138.43,52.08]
[1723825381001,53.08,138.55,138.45,3.6104]
[1723825381500,52.08,138.52,138.43,3.6109]
[1723825381700,52.08,138.5,138.43,3.6109]
[1723825382000,52.08,138.5,138.46,0.04573375]
[1723825382001,0.04904456,138.49,138.46,0.04573375]
[1723825382398,52.08,138.48,138.46,0.04573375]
[1723825382608,0.04904456,138.49,138.46,0.04573375]
[1723825382804,6.56,138.48,138.46,0.04573375]
[1723825383901,58.64,138.48,138.46,0.04573375]
[1723825384096,58.64,138.48,138.37,52.08]
[1723825384492,7.235,138.47,138.37,52.08]
[1723825384697,7.235,138.47,138.39,3.6119]
[1723825384896,7.235,138.47,138.37,52.08]
[1723825385091,1.0,138.46,138.37,52.08]
[1723825385301,0.05189349,138.43,138.41,0.04919546]
[1723825385899,5.61189349,138.43,138.41,0.04919546]